fUST/lending_fUST_20240628
["ID","MTS","AMOUNT","RATE_DAILY","PERIOD"]
[330505326,1719527234139,-166.019449,0.00021096,2]
[330505327,1719527234159,-601.2066959,0.00027708,2]
[330505328,1719527236093,-247.4336935,0.00027708,2]
[330505329,1719527236113,-300.0,0.0002893,2]
[330505330,1719527236133,-300.0,0.0002893,2]
[330505331,1719527236155,-827.46621989,0.00028931,2]
[330505332,1719527249113,-162.06728744,0.00027875,2]
[330505333,1719527249134,-152.08878095,0.00027957,2]
[330505334,1719527249156,-156.8155296,0.00028145,2]
[330505335,1719527249176,-156.8155296,0.00028834,2]
[330505336,1719527249199,-4775.43431097,0.00028931,2]
[330505337,1719527351115,-166.6666669,0.00025448,2]
[330505338,1719527351137,-300.0,0.0002676,2]
[330505339,1719527351157,-300.0,0.0002676,2]
[330505340,1719527351176,-409.160855,0.00026761,2]
[330505341,1719527351196,-24900.0,0.00026761,2]
[330505342,1719527351216,-26065.71723526,0.00027184,2]
[330505343,1719527351234,-5601.4013146,0.00027265,2]
[330505344,1719527351252,-9159.36064538,0.00028931,2]
[330505345,1719527351272,-156.3627861,0.00028931,30]
[330505346,1719527351291,-336.0,0.00028938,2]
[330505347,1719527351311,-562.98270388,0.00029281,2]
[330505348,1719527351331,-250.0,0.00029381,2]
[330505349,1719527351350,-420.0,0.00029436,2]
[330505350,1719527351368,-3000.0,0.00029515,2]
[330505351,1719527351386,-156.8155296,0.00029532,2]
[330505352,1719527351405,-7478.29517923,0.00029823,2]
[330505353,1719527361093,-150.38524184,0.00029839,2]
[330505354,1719527361113,-4.5599629,0.00029859,2]
[330505355,1719527420398,150.0,0.00027415,2]
[330505365,1719527432953,-300.0,0.0002893,2]
[330505366,1719527432963,-181.6707771,0.00028931,2]
[330505367,1719527432972,-49.2739729,0.00029859,2]
[330505368,1719527438899,-108.23335164,0.00029859,2]
[330505369,1719527438909,-4515.71987813,0.00029859,2]
[330505370,1719527438919,-156.8155296,0.00029961,2]
[330505371,1719527438930,-162.06728744,0.00030215,7]
[330505372,1719527438940,-162.06728744,0.00030233,7]
[330505373,1719527438949,-156.8155296,0.00030851,7]
[330505374,1719527438960,-156.8155296,0.00031263,7]
[330505375,1719527438969,-420.0,0.00031823,2]
[330505376,1719527438980,-250.0,0.00032067,2]
[330505377,1719527438990,-2308.96008387,0.00032079,2]
[330505378,1719527439007,-691.03991613,0.00032079,2]
[330505379,1719527439019,-202.64780772,0.00032233,2]
[330505380,1719527439029,-156.8155296,0.00032597,7]
[330505381,1719527439040,-153.0,0.00032851,2]
[330505382,1719527439051,-153.0,0.00032851,2]
[330505383,1719527439061,-153.0,0.00032851,2]
[330505384,1719527439071,-153.0,0.00032851,2]
[330505385,1719527439082,-153.0,0.00032851,2]
[330505386,1719527439092,-153.0,0.00032851,2]
[330505387,1719527439103,-153.0,0.00032851,2]
[330505388,1719527439113,-153.0,0.00032851,2]
[330505389,1719527439123,-153.0,0.00032851,2]
[330505390,1719527439133,-153.0,0.00032851,2]
[330505391,1719527439143,-153.0,0.00032851,2]
[330505392,1719527439154,-153.0,0.00032851,2]
[330505393,1719527439165,-153.0,0.00032851,2]
[330505394,1719527439175,-153.0,0.00032851,2]
[330505395,1719527439186,-153.0,0.00032851,2]
[330505396,1719527439196,-153.0,0.00032851,2]
[330505397,1719527439205,-153.0,0.00032851,2]
[330505399,1719527439215,-153.0,0.00032851,2]
[330505401,1719527439225,-153.0,0.00032851,2]
[330505403,1719527439235,-153.0,0.00032851,2]
[330505405,1719527439246,-153.0,0.00032851,2]
[330505407,1719527439256,-153.0,0.00032851,2]
[330505409,1719527439268,-153.0,0.00032851,2]
[330505411,1719527439278,-153.0,0.00032851,2]
[330505413,1719527439288,-156.8155296,0.00033824,7]
[330505415,1719527439301,-162.06728744,0.0003389,7]
[330505431,1719527439455,-162.06728744,0.00033914,7]
[330505433,1719527439469,-166.019449,0.00033973,2]
[330505435,1719527439480,-152.08878095,0.00034155,7]
[330505437,1719527439490,-156.8155296,0.00034399,7]
[330505439,1719527439501,-4131.84570146,0.00034623,4]
[330505441,1719527439511,-156.8155296,0.00034649,7]
[330505443,1719527439522,-972.815005,0.00034669,4]
[330505445,1719527439532,-850.30728039,0.0003468,4]
[330505447,1719527439542,-2128.88510458,0.00034899,4]
[330505449,1719527439553,-162.06728744,0.00034907,7]
[330505452,1719527439564,-154.996983,0.00034989,4]
[330505454,1719527439574,-154.82195475,0.00034989,4]
[330505456,1719527439584,-155.05100126,0.00034989,4]
[330505457,1719527439594,-285.68341675,0.00034989,4]
[330505459,1719527439604,-208.78179078,0.00034999,4]
[330505461,1719527439614,-771.07805566,0.00035,4]
[330505463,1719527439624,-566.0,0.00035005,2]
[330505466,1719527439635,-150.38524184,0.00035078,7]
[330505468,1719527439645,-162.06728744,0.00035583,7]
[330505470,1719527439655,-156.8155296,0.00035942,7]
[330505472,1719527439665,-162.06728744,0.00035995,7]
[330505473,1719527439674,-25504.51085575,0.00036192,4]
[330505476,1719527439685,-17355.65049867,0.00036192,2]
[330505477,1719527439696,-1834.5277015,0.00036351,4]
[330505480,1719527439708,-155.57372186,0.00037311,7]
[330505482,1719527439719,-159.50123805,0.00037368,7]
[330505484,1719527439730,-1117.87472833,0.00037587,4]
[330505486,1719527439740,-730.08869906,0.00037899,4]
[330505488,1719527439750,-156.8155296,0.00037908,7]
[330505490,1719527439760,-156.8155296,0.00037932,7]
[330505492,1719527439771,-694.65587847,0.00037999,4]
[330505493,1719527439781,-796.37419199,0.00037999,4]
[330505496,1719527439791,-642.05782593,0.00037999,4]
[330505497,1719527439802,-666.70382175,0.00038264,4]
[330505499,1719527439812,-322.01145644,0.00038264,4]
[330505501,1719527439823,-156.8155296,0.0003837,7]
[330505503,1719527439833,-276.7,0.0003915,15]
[330505505,1719527439843,-154.82195475,0.00039167,4]
[330505507,1719527439853,-164.53895357,0.00039177,4]
[330505508,1719527439863,-402.7993587,0.00039177,4]
[330505509,1719527439873,-157.2456885,0.00039177,4]
[330505511,1719527439884,-309.6439095,0.00039177,4]
[330505513,1719527439896,-181.59371313,0.00039393,4]
[330505515,1719527439906,-154.83742071,0.00039393,4]
[330505516,1719527439916,-293.10784911,0.00039393,2]
[330505518,1719527439926,-321.56686721,0.00039393,2]
[330505520,1719527439936,-350.76834855,0.00039393,30]
[330505522,1719527439946,-155.67984992,0.00039393,4]
[330505523,1719527439956,-276.7,0.00039533,15]
[330505524,1719527439966,-156.8155296,0.00039836,7]
[330505525,1719527439976,-276.7,0.00039916,15]
[330505526,1719527439986,-500.0,0.00039972,30]
[330505527,1719527439996,-500.0,0.00039972,35]
[330505528,1719527440010,-500.0,0.00039972,40]
[330505529,1719527440020,-500.0,0.00039972,45]
[330505530,1719527440031,-500.0,0.00039972,50]
[330505531,1719527440043,-500.0,0.00039972,55]
[330505532,1719527440052,-500.0,0.00039972,60]
[330505533,1719527440063,-500.0,0.00039972,65]
[330505534,1719527440072,-500.0,0.00039972,70]
[330505535,1719527440083,-500.0,0.00039972,75]
[330505536,1719527440093,-500.0,0.00039972,80]
[330505537,1719527440102,-500.0,0.00039972,85]
[330505538,1719527440112,-200.39872723,0.00039972,90]
[330505539,1719527440122,-309.6439095,0.00039994,4]
[330505540,1719527440132,-164.83119203,0.00039994,4]
[330505541,1719527440143,-154.91476285,0.00039994,4]
[330505542,1719527440153,-155.77257915,0.00039994,4]
[330505543,1719527440164,-208.86720996,0.00039994,4]
[330505544,1719527440174,-286.73281803,0.00039994,4]
[330505545,1719527440184,-154.82195475,0.00039999,4]
[330505546,1719527440194,-772.0,0.00040135,2]
[330505547,1719527440205,-409.160855,0.00040141,2]
[330505548,1719527440215,-194.98259822,0.00040229,4]
[330505549,1719527440225,-154.82195475,0.00040278,4]
[330505550,1719527440235,-276.7,0.00040299,15]
[330505551,1719527440245,-156.8155296,0.0004049,30]
[330505552,1719527440255,-156.8155296,0.0004061,30]
[330505553,1719527440265,-276.7,0.00040682,15]
[330505554,1719527440275,-183.70617726,0.00040999,4]
[330505555,1719527440286,-311.43063313,0.00041063,31]
[330505556,1719527440296,-276.7,0.00041064,31]
[330505557,1719527440307,-276.7,0.00041447,31]
[330505558,1719527440317,-156.8155296,0.00041491,30]
[330505559,1719527440327,-156.8155296,0.00041607,30]
[330505560,1719527440337,-162.06728744,0.00041825,30]
[330505561,1719527440347,-276.7,0.0004183,31]
[330505562,1719527440357,-154.83742071,0.00041941,4]
[330505563,1719527440367,-2587.27,0.0004199,3]
[330505564,1719527440377,-500.0,0.00042,120]
[330505565,1719527440387,-1100.87874995,0.00042,30]
[330505566,1719527440397,-17055.48972142,0.00042,30]
[330505567,1719527440406,-820.03,0.00042148,30]
[330505568,1719527440417,-156.8155296,0.00042158,30]
[330505569,1719527440427,-276.7,0.00042213,31]
[330505570,1719527440436,-162.06728744,0.0004228,30]
[330505571,1719527440447,-276.7,0.00042596,31]
[330505572,1719527440457,-155.38523359,0.00042629,4]
[330505573,1719527440467,-519.98573171,0.00042629,4]
[330505574,1719527440478,-214.18723696,0.00042958,4]
[330505575,1719527440488,-600.0,0.00042958,96]
[330505576,1719527440499,-276.7,0.00042979,31]
[330505577,1719527440509,-3104.73,0.00042989,3]
[330505578,1719527440520,-1967.45654607,0.00042999,30]
[330505579,1719527440530,-500.0,0.00043,120]
[330505580,1719527440540,-5265.58028035,0.00043,30]
[330505581,1719527440550,-9934.31103191,0.00043,10]
[330505582,1719527440565,-1597.17008509,0.00043,10]
[330505583,1719527440575,-250.24655234,0.00043287,4]
[330505584,1719527440585,-276.7,0.00043362,31]
[330505585,1719527440595,-152.0,0.00043362,31]
[330505586,1719527440605,-162.06728749,0.00043382,30]
[330505587,1719527440616,-154.82,0.000436,36]
[330505588,1719527440626,-154.82,0.000436,36]
[330505589,1719527440635,-1988.51,0.00043619,3]
[330505590,1719527440646,-5282.41580836,0.00043629,2]
[330505591,1719527440656,-156.81552976,0.0004367,30]
[330505592,1719527440666,-250.0,0.000437,45]
[330505593,1719527440676,-250.0,0.000437,45]
[330505594,1719527440686,-6430.78744442,0.00043725,31]
[330505595,1719527440696,-88888.0,0.00043725,5]
[330505596,1719527440707,-2265.94,0.00043734,120]
[330505597,1719527440718,-5085.7205036,0.00043735,2]
[330505598,1719527440728,-2000.0,0.00043735,2]
[330505599,1719527440738,-276.7,0.00043745,31]
[330505600,1719527440748,-152.0,0.00043745,31]
[330505601,1719527440758,-171.87743142,0.00043801,30]
[330505602,1719527440768,-216.74,0.00043834,7]
[330505603,1719527440778,-3158.4215966,0.00043835,31]
[330505604,1719527440788,-2330.65,0.00043835,120]
[330505605,1719527440798,-528.63,0.00043835,120]
[330505606,1719527440807,-500.0,0.00043835,120]
[330505607,1719527440817,-500.0,0.00043835,120]
[330505609,1719527440827,-1291.21,0.00043835,120]
[330505611,1719527440837,-453.67502068,0.00043835,120]
[330505613,1719527440847,-500.0,0.00043835,120]
[330505615,1719527440857,-500.0,0.00043835,120]
[330505616,1719527440866,-500.0,0.00043835,120]
[330505618,1719527440876,-500.0,0.00043835,120]
[330505620,1719527440885,-500.0,0.00043835,120]
[330505622,1719527440895,-500.0,0.00043835,120]
[330505624,1719527440904,-501.12940129,0.00043835,120]
[330505626,1719527440914,-500.0,0.00043835,120]
[330505627,1719527440923,-500.0,0.00043835,120]
[330505628,1719527440932,-500.0,0.00043835,120]
[330505629,1719527440941,-500.0,0.00043835,120]
[330505630,1719527440951,-500.0,0.00043835,120]
[330505631,1719527440960,-500.0,0.00043835,120]
[330505632,1719527440969,-760.26,0.00043835,120]
[330505633,1719527440979,-500.0,0.00043835,120]
[330505634,1719527440988,-500.0,0.00043835,120]
[330505635,1719527440997,-655.19,0.00043835,120]
[330505636,1719527441011,-500.0,0.00043835,2]
[330505638,1719527441021,-500.0,0.00043835,120]
[330505641,1719527441031,-500.0,0.00043835,120]
[330505644,1719527441041,-500.0,0.00043835,120]
[330505647,1719527441050,-500.0,0.00043835,120]
[330505648,1719527441061,-500.0,0.00043835,120]
[330505650,1719527441071,-500.0,0.00043835,120]
[330505652,1719527441081,-500.0,0.00043835,120]
[330505654,1719527441090,-4478.33542159,0.00043835,60]
[330505655,1719527441099,-500.0,0.00043835,120]
[330505657,1719527441108,-500.0,0.00043835,120]
[330505659,1719527441117,-500.0,0.00043835,120]
[330505661,1719527441127,-500.0,0.00043835,120]
[330505663,1719527441136,-627.75,0.00043835,120]
[330505666,1719527441145,-500.0,0.00043835,120]
[330505667,1719527441155,-500.0,0.00043835,120]
[330505670,1719527441165,-500.0,0.00043835,120]
[330505671,1719527441174,-539.19,0.00043835,120]
[330505673,1719527441184,-500.0,0.00043835,120]
[330505675,1719527441193,-990.47,0.00043835,120]
[330505678,1719527441202,-500.0,0.00043835,120]
[330505679,1719527441211,-500.0,0.00043835,120]
[330505682,1719527441221,-500.0,0.00043835,120]
[330505683,1719527441230,-500.0,0.00043835,120]
[330505685,1719527441239,-500.0,0.00043835,120]
[330505687,1719527441249,-500.0,0.00043835,20]
[330505688,1719527441258,-500.0,0.00043835,120]
[330505689,1719527441267,-588.42278793,0.00043835,120]
[330505690,1719527441277,-500.0,0.00043835,120]
[330505691,1719527441286,-500.0,0.00043835,120]
[330505692,1719527441295,-679.03,0.00043835,120]
[330505693,1719527441304,-695.26,0.00043835,2]
[330505694,1719527441314,-500.0,0.00043835,120]
[330505695,1719527441323,-501.49,0.00043835,120]
[330505696,1719527441333,-250.0,0.00043835,120]
[330505697,1719527441343,-500.0,0.00043835,120]
[330505698,1719527441351,-522.79,0.00043835,120]
[330505699,1719527441361,-500.0,0.00043835,120]
[330505700,1719527441371,-500.0,0.00043835,120]
[330505701,1719527441380,-500.0,0.00043835,120]
[330505702,1719527441390,-500.0,0.00043835,120]
[330505703,1719527441399,-500.0,0.00043835,120]
[330505704,1719527441409,-500.0,0.00043835,120]
[330505705,1719527441418,-500.0,0.00043835,120]
[330505706,1719527441427,-811.94,0.00043835,120]
[330505707,1719527441436,-500.0,0.00043835,120]
[330505708,1719527441446,-500.0,0.00043835,120]
[330505709,1719527441455,-500.0,0.00043835,120]
[330505710,1719527441465,-390.94944611,0.00043835,120]
[330505711,1719527441474,-500.0,0.00043835,120]
[330505712,1719527441484,-500.0,0.00043835,120]
[330505713,1719527441496,-540.81,0.00043835,120]
[330505715,1719527441505,-500.0,0.00043835,120]
[330505717,1719527441516,-500.0,0.00043835,120]
[330505719,1719527441526,-364.00985362,0.00043835,120]
[330505721,1719527441535,-500.0,0.00043835,120]
[330505723,1719527441545,-500.0,0.00043835,120]
[330505725,1719527441556,-500.0,0.00043835,120]
[330505727,1719527441565,-500.0,0.00043835,120]
[330505729,1719527441574,-500.0,0.00043835,120]
[330505731,1719527441583,-500.0,0.00043835,120]
[330505733,1719527441592,-500.0,0.00043835,120]
[330505735,1719527441602,-595.02170999,0.00043835,120]
[330505737,1719527441611,-562.47531205,0.00043835,120]
[330505739,1719527441620,-600.15547649,0.00043835,120]
[330505741,1719527441630,-500.0,0.00043835,120]
[330505743,1719527441639,-500.0,0.00043835,120]
[330505745,1719527441648,-500.0,0.00043835,120]
[330505747,1719527441658,-500.0,0.00043835,120]
[330505749,1719527441667,-500.0,0.00043835,30]
[330505751,1719527441676,-500.0,0.00043835,120]
[330505753,1719527441685,-500.0,0.00043835,120]
[330505755,1719527441695,-1134.84,0.00043835,120]
[330505757,1719527441705,-500.0,0.00043835,120]
[330505759,1719527441714,-500.0,0.00043835,120]
[330505761,1719527441723,-518.3030023,0.00043835,120]
[330505763,1719527441733,-287.85606641,0.00043835,120]
[330505765,1719527441744,-500.0,0.00043835,120]
[330505767,1719527441754,-500.0,0.00043835,120]
[330505769,1719527441763,-500.0,0.00043835,120]
[330505771,1719527441772,-500.0,0.00043835,2]
[330505773,1719527441781,-500.0,0.00043835,120]
[330505775,1719527441791,-500.0,0.00043835,120]
[330505788,1719527441902,-500.0,0.00043835,120]
[330505790,1719527441911,-746.31,0.00043835,120]
[330505791,1719527441920,-500.0,0.00043835,120]
[330505792,1719527441930,-825.34,0.00043835,120]
[330505793,1719527441940,-500.0,0.00043835,120]
[330505795,1719527441949,-1038.56,0.00043835,120]
[330505796,1719527441959,-500.0,0.00043835,120]
[330505797,1719527441968,-583.95,0.00043835,120]
[330505798,1719527441977,-2037.87,0.00043835,120]
[330505799,1719527441987,-500.0,0.00043835,120]
[330505800,1719527441997,-500.0,0.00043835,120]
[330505801,1719527442011,-500.0,0.00043835,120]
[330505802,1719527442021,-500.0,0.00043835,120]
[330505803,1719527442031,-500.0,0.00043835,120]
[330505804,1719527442043,-536.67937763,0.00043835,120]
[330505805,1719527442053,-500.0,0.00043835,120]
[330505806,1719527442064,-500.0,0.00043835,120]
[330505807,1719527442073,-500.0,0.00043835,120]
[330505808,1719527442085,-674.06,0.00043835,120]
[330505809,1719527442102,-500.0,0.00043835,120]
[330505810,1719527442111,-821.43,0.00043835,120]
[330505811,1719527442121,-500.0,0.00043835,120]
[330505812,1719527442131,-500.0,0.00043835,120]
[330505813,1719527442140,-500.0,0.00043835,120]
[330505814,1719527442150,-159.87259529,0.00043835,120]
[330505815,1719527442159,-500.0,0.00043835,120]
[330505816,1719527442169,-500.0,0.00043835,120]
[330505817,1719527442178,-949.18,0.00043835,120]
[330505818,1719527442188,-500.0,0.00043835,120]
[330505819,1719527442198,-617.74,0.00043835,120]
[330505820,1719527442207,-500.0,0.00043835,120]
[330505821,1719527442217,-892.95,0.00043835,120]
[330505822,1719527442226,-442.82865292,0.00043835,120]
[330505823,1719527442236,-915.7,0.00043835,120]
[330505824,1719527442245,-561.73,0.00043835,120]
[330505825,1719527442255,-531.67,0.00043835,120]
[330505826,1719527442264,-1345.52,0.00043835,120]
[330505827,1719527442275,-500.0,0.00043835,120]
[330505828,1719527442284,-1667.74,0.00043835,120]
[330505829,1719527442293,-500.0,0.00043835,120]
[330505830,1719527442303,-500.0,0.00043835,120]
[330505831,1719527442312,-500.0,0.00043835,120]
[330505832,1719527442322,-580.16,0.00043835,120]
[330505833,1719527442331,-500.0,0.00043835,120]
[330505834,1719527442340,-500.0,0.00043835,120]
[330505835,1719527442349,-564.81,0.00043835,120]
[330505836,1719527442358,-506.0450305,0.00043835,28]
[330505837,1719527442368,-500.0,0.00043835,30]
[330505838,1719527442377,-500.0,0.00043835,120]
[330505839,1719527442387,-500.0,0.00043835,120]
[330505840,1719527442396,-595.19,0.00043835,120]
[330505841,1719527442406,-500.0,0.00043835,120]
[330505842,1719527442415,-500.0,0.00043835,120]
[330505843,1719527442424,-500.0,0.00043835,120]
[330505844,1719527442434,-500.0,0.00043835,120]
[330505845,1719527442443,-500.0,0.00043835,120]
[330505846,1719527442452,-500.0,0.00043835,120]
[330505847,1719527442462,-500.0,0.00043835,120]
[330505848,1719527442472,-500.72,0.00043835,120]
[330505849,1719527442481,-500.0,0.00043835,120]
[330505850,1719527442491,-578.95281626,0.00043835,120]
[330505851,1719527442500,-500.0,0.00043835,120]
[330505852,1719527442509,-500.0,0.00043835,120]
[330505853,1719527442522,-1392.81,0.00043835,120]
[330505854,1719527442532,-583.09,0.00043835,60]
[330505855,1719527442541,-556.53,0.00043835,120]
[330505856,1719527442551,-768.72,0.00043835,120]
[330505857,1719527442564,-500.0,0.00043835,120]
[330505858,1719527442575,-500.0,0.00043835,120]
[330505859,1719527442583,-500.0,0.00043835,120]
[330505860,1719527442592,-1422.65,0.00043835,120]
[330505861,1719527442601,-500.0,0.00043835,120]
[330505862,1719527442611,-500.0,0.00043835,120]
[330505863,1719527442620,-500.0,0.00043835,120]
[330505864,1719527442630,-500.0,0.00043835,120]
[330505865,1719527442640,-8071.24,0.00043835,120]
[330505866,1719527442649,-500.0,0.00043835,120]
[330505867,1719527442659,-429.85894291,0.00043835,120]
[330505884,1719527443898,-181.6707771,0.00029859,2]
[330505885,1719527443908,-450.38616308,0.00036092,2]
[330505887,1719527443917,-450.38616308,0.00037978,2]
[330505889,1719527443929,-470.62851123,0.00038264,4]
[330505890,1719527443940,-175.97073239,0.00041095,4]
[330505899,1719527444069,-8463.4814507,0.00041589,4]
[330505900,1719527444082,-3518.6321867,0.00043763,2]
[330505901,1719527444111,-450.38616308,0.00039863,2]
[330505902,1719527444121,-5.42491156,0.00043763,2]
[330505903,1719527444133,-451.51601229,0.00043763,2]
[330505904,1719527444144,-545.89534636,0.00043763,2]
[330505905,1719527444156,-377.95012059,0.00043763,2]
[330505906,1719527444168,-272.94690152,0.00043763,2]
[330505907,1719527444177,-1496.66867818,0.00043825,3]
[330505908,1719527444200,-0.01088341,0.00043825,3]
[330505909,1719527444378,-659.38043841,0.00043825,3]
[330505910,1719527444388,-70.14105709,0.00043835,120]
[330505911,1719527444398,-500.0,0.00043835,120]
[330505912,1719527444408,-500.0,0.00043835,120]
[330505913,1719527444419,-500.0,0.00043835,120]
[330505914,1719527444428,-355.65446535,0.00043835,120]
[330505915,1719527444437,-500.0,0.00043835,120]
[330505916,1719527444447,-500.0,0.00043835,120]
[330505917,1719527444456,-500.0,0.00043835,120]
[330505918,1719527444465,-500.0,0.00043835,120]
[330505919,1719527444475,-364.96035042,0.00043835,120]
[330505928,1719527447089,-154.82195475,0.00040229,4]
[330505929,1719527447098,-450.38616308,0.00041749,2]
[330505930,1719527447107,-79.64285278,0.00043835,120]
[330505931,1719527447119,-55.3967968,0.00043835,120]
[330505932,1719527447128,-18846.98,0.00043835,120]
[330505933,1719527447138,-500.0,0.00043835,120]
[330505934,1719527447146,-892.89,0.00043835,120]
[330505935,1719527447155,-2332.76,0.00043835,120]
[330505936,1719527447164,-420.2287909,0.00043835,120]
[330505937,1719527447173,-500.0,0.00043835,2]
[330505938,1719527447182,-709.73,0.00043835,120]
[330505939,1719527447191,-151.0,0.00043835,14]
[330505940,1719527447199,-210.91834552,0.00043835,120]
[330505941,1719527447208,-500.0,0.00043835,120]
[330505942,1719527447217,-500.0,0.00043835,120]
[330505943,1719527447226,-500.0,0.00043835,120]
[330505944,1719527447235,-500.0,0.00043835,120]
[330505945,1719527447243,-637.35,0.00043835,120]
[330505946,1719527447252,-500.0,0.00043835,120]
[330505947,1719527447261,-1494.07,0.00043835,120]
[330505948,1719527447271,-957.36,0.00043835,120]
[330505949,1719527447280,-500.0,0.00043835,120]
[330505950,1719527447289,-500.0,0.00043835,120]
[330505951,1719527447297,-500.62,0.00043835,120]
[330505952,1719527447306,-500.0,0.00043835,120]
[330505953,1719527447315,-500.0,0.00043835,10]
[330505954,1719527447324,-549.52,0.00043835,120]
[330505955,1719527447333,-151.0,0.00043835,14]
[330505956,1719527447342,-151.0,0.00043835,14]
[330505957,1719527447351,-772.62,0.00043835,120]
[330505958,1719527447359,-554.20823503,0.00043835,120]
[330505959,1719527447370,-565.90917409,0.00043835,120]
[330505960,1719527447379,-736.64,0.00043835,120]
[330505961,1719527447388,-500.0,0.00043835,120]
[330505962,1719527447396,-500.0,0.00043835,120]
[330505963,1719527447405,-500.0,0.00043835,120]
[330505964,1719527447414,-273.07,0.00043835,7]
[330505965,1719527447423,-500.0,0.00043835,120]
[330505966,1719527447432,-562.59615396,0.00043835,120]
[330505967,1719527447440,-500.0,0.00043835,120]
[330505968,1719527447449,-500.0,0.00043835,120]
[330505969,1719527447458,-529.85,0.00043835,120]
[330505970,1719527447467,-500.0,0.00043835,120]
[330505971,1719527447476,-696.54,0.00043835,120]
[330505972,1719527447485,-500.0,0.00043835,120]
[330505973,1719527447493,-500.0,0.00043835,120]
[330505974,1719527447502,-500.0,0.00043835,120]
[330505975,1719527447511,-535.12,0.00043835,120]
[330505976,1719527447521,-500.0,0.00043835,120]
[330505977,1719527447530,-500.0,0.00043835,120]
[330505978,1719527447539,-505.5899617,0.00043835,120]
[330505979,1719527447547,-649.5,0.00043835,120]
[330505980,1719527447556,-151.0,0.00043835,14]
[330505981,1719527447565,-185.271306,0.00043835,14]
[330505982,1719527447574,-500.0,0.00043835,120]
[330505983,1719527447584,-500.0,0.00043835,120]
[330505984,1719527447592,-743.65,0.00043835,120]
[330505985,1719527447601,-500.0,0.00043835,120]
[330505986,1719527447610,-585.09778449,0.00043835,120]
[330505987,1719527447619,-500.0,0.00043835,120]
[330505988,1719527447628,-945.87,0.00043835,120]
[330505989,1719527447637,-500.0,0.00043835,120]
[330505990,1719527447646,-774.05,0.00043835,120]
[330505991,1719527447655,-500.0,0.00043835,120]
[330505992,1719527447665,-672.06,0.00043835,120]
[330505993,1719527447674,-500.0,0.00043835,120]
[330505994,1719527447683,-500.0,0.00043835,120]
[330505995,1719527447692,-3135.08,0.00043835,120]
[330505996,1719527447701,-1936.1,0.00043835,120]
[330505997,1719527447712,-500.0,0.00043835,120]
[330505998,1719527447721,-500.0,0.00043835,14]
[330505999,1719527447731,-500.0,0.00043835,25]
[330506000,1719527447740,-698.83,0.00043835,120]
[330506001,1719527447749,-500.0,0.00043835,120]
[330506002,1719527447758,-620.74,0.00043835,120]
[330506003,1719527447767,-500.0,0.00043835,120]
[330506004,1719527447776,-500.0,0.00043835,120]
[330506005,1719527447785,-500.0,0.00043835,120]
[330506006,1719527447794,-500.0,0.00043835,120]
[330506007,1719527447803,-1818.97,0.00043835,120]
[330506008,1719527447813,-500.0,0.00043835,120]
[330506009,1719527447823,-500.0,0.00043835,120]
[330506010,1719527447832,-1135.24,0.00043835,120]
[330506011,1719527447841,-500.0,0.00043835,120]
[330506012,1719527447850,-500.0,0.00043835,120]
[330506013,1719527447859,-501.16,0.00043835,120]
[330506014,1719527447868,-1686.91,0.00043835,120]
[330506015,1719527447878,-18155.55,0.00043835,120]
[330506016,1719527447887,-604.6,0.00043835,120]